Workbook

Sheet MOI
F1: COMMISSION SUR ENCAISSEMENTS DE :
A3: =TODAY() -> 2021-04-26 | F3: ACOMPTE | I3: COM / AC | K3: SOLDE | N3: COM / S | P3: LEASING | R3: RÉCURRENTS ANNUELS | U3: NE PAS TOUCHER | V3: DATE | W3: NE PAS TOUCHER | X3: RÉCURRENTS MENSUELS | AH3: NE PAS TOUCHER | AI3: CALCUL après correction manuelle
A4: DATE CONTRAT | B4: AGENCE | C4: DOSSIER | E4: SITE | F4: MONTANT TTC | G4: MONTANT HT | H4: DATE | I4: MONTANT | J4: DATE | K4: MONTANT TTC | L4: MONTANT HT | M4: DATE | N4: SOLDE SITE | O4: DATE | P4: LEASING | Q4: PARFIP DATE ENC | R4: DATE | S4: TOTAL HT/AN 50% | T4: TOTAL HT/AN 100% | U4: CALCUL des 50% | V4: DÉMARRAGE REC | W4: CALCUL de l'ANCIENNETÉ | X4: ANNOTATION | Y4: TOTAL HT/MOIS | Z4: VV / WP / FORMATIONS /MAIL | AA4: SC / SVC | AB4: MOOVEO | AC4: HÉBERG. LOC SITE | AD4: RÉF. NAT. | AE4: RÉF. CLIC | AF4: HEKTOR | AG4: INTERKAB | AH4: CALCUL des 100%
U5: =SUM($U$6:U49) -> 1057.5 | Y5: =SUM($Y$6:Y49) -> 4097.5 | AH5: =SUM($AH$6:AH49) -> 206 | AI5: =SUM($AI$6:AI49) -> 206
G6: =IF(F6="","",F6/1.2) ->  | I6: =IF(H6="","",VLOOKUP(H6,$B$64:$C$70,2)*G6) ->  | L6: =IF(K6="","",K6/1.2) ->  | N6: =IF(M6="","",VLOOKUP(M6,$B$64:$C$70,2)*L6) ->  | S6: =IF(R6="","",IF(R6<$A$3-365,T6/2,"")) ->  | U6: =IF($V6="","",IF(Y6="",0,IF($V6<$A$3-375,Y6/2,""))) ->  | W6: =IF(V6="","",IF(V6>$A$3,"",DATEDIF(V6,$A$3,"Y")&IF(DATEDIF(V6,$A$3,"Y")>1," ans, "," an, ")&DATEDIF(V6,$A$3,"YM")&" mois et "&DATEDIF(V6,$A$3,"MD")&IF(DATEDIF(V6,$A$3,"MD")>1," jours"," jour"))) ->  | Y6: =IF(SUM(Z6:AG6)=0,"",SUM(Z6:AG6)) ->  | AH6: =IF(V6="","",IF(V6>$A$3,"",IF(X6="ANNUEL",0,IF(V6>$A$3-365,Y6,0)))) ->  | AI6: =IF(AH6="","",AH6) -> 
A7: 2021-01-25 | B7: TOI | C7: 2563 | D7: REPRISE | G7: =IF(F7="","",F7/1.2) ->  | I7: =IF(H7="","",VLOOKUP(H7,$B$64:$C$70,2)*G7) ->  | L7: =IF(K7="","",K7/1.2) ->  | N7: =IF(M7="","",VLOOKUP(M7,$B$64:$C$70,2)*L7) ->  | S7: =IF(R7="","",IF(R7<$A$3-365,T7/2,"")) ->  | U7: =IF($V7="","",IF(Y7="",0,IF($V7<$A$3-375,Y7/2,""))) -> 39.5 | V7: 2015-11-15 | W7: =IF(V7="","",IF(V7>$A$3,"",DATEDIF(V7,$A$3,"Y")&IF(DATEDIF(V7,$A$3,"Y")>1," ans, "," an, ")&DATEDIF(V7,$A$3,"YM")&" mois et "&DATEDIF(V7,$A$3,"MD")&IF(DATEDIF(V7,$A$3,"MD")>1," jours"," jour"))) -> 5 ans, 5 mois et 11 jours | Y7: =IF(SUM(Z7:AG7)=0,"",SUM(Z7:AG7)) -> 79 | AF7: 79 | AH7: =IF(V7="","",IF(V7>$A$3,"",IF(X7="ANNUEL",0,IF(V7>$A$3-365,Y7,0)))) -> 0 | AI7: 0
A8: 2021-01-25 | B8: MOI | C8: 2563 | D8: REPRISE | U8: 45 | V8: 2017-04-15 | W8: 4 ans, 0 mois et 11 jours | Y8: 90 | AC8: 90 | AH8: 0 | AI8: 0
A9: 2021-01-25 | B9: LUI | C9: 8536 | E9: 1200 | F9: 720 | G9: 600 | H9: 2021-02-22 | I9: 39 | J9: 2021-02-01 | K9: 720 | L9: 600 | M9: 2021-03-10 | N9: 39 | O9: 2021-03-01 | V9: 2021-04-01 | W9: 0 an, 0 mois et 25 jours | Y9: 19 | AC9: 19 | AH9: 19 | AI9: 19
A10: 2021-01-31 | B10: NOUS | C10: 8570 | V10: 2021-05-01 | Y10: 191 | AF10: 191
A11: 2021-02-01 | B11: VOUS | C11: 3456 | D11: REPRISE | U11: 44 | V11: 2019-06-01 | W11: 1 an, 10 mois et 25 jours | Y11: 88 | AF11: 88 | AH11: 0 | AI11: 0
A12: 2021-02-01 | B12: TOI | C12: 3456 | D12: REPRISE | U12: 29 | V12: 2019-06-01 | W12: 1 an, 10 mois et 25 jours | Y12: 58 | AA12: 29 | AC12: 29 | AH12: 0 | AI12: 0
A13: 2021-02-12 | B13: MOI | C13: 3838 | D13: REPRISE | U13: 39 | V13: 2017-03-01 | W13: 4 ans, 1 mois et 25 jours | Y13: 78 | AF13: 78 | AH13: 0 | AI13: 0
A14: 2021-02-12 | B14: LUI | C14: 3838 | U14: 165.5 | V14: 2017-04-01 | W14: 4 ans, 0 mois et 25 jours | Y14: 331 | AC14: 112.5 | AD14: 218.5 | AH14: 0 | AI14: 0
A15: 2021-02-18 | B15: NOUS | C15: 8588 | V15: 2021-05-15 | Y15: 149 | AF15: 149
A16: 2021-02-18 | B16: VOUS | C16: 8588 | E16: 2200 | F16: 1320 | G16: 1100 | H16: 2021-02-18 | I16: 71.5 | J16: 2021-02-01 | Y16: 19 | AC16: 19
A17: 2021-02-19 | B17: TOI | C17: 4564 | U17: 85.75 | V17: 2017-12-01 | W17: 3 ans, 4 mois et 25 jours | Y17: 171.5 | AA17: 19 | AC17: 72.5 | AD17: 80 | AH17: 0 | AI17: 0
A18: 2021-02-19 | B18: MOI | C18: 4564 | U18: 57 | V18: 2017-08-01 | W18: 3 ans, 8 mois et 25 jours | Y18: 114 | AF18: 114 | AH18: 0 | AI18: 0
A19: 2021-02-25 | B19: LUI | C19: 5603 | D19: REPRISE | U19: 62 | V19: 2018-07-01 | W19: 2 ans, 9 mois et 25 jours | Y19: 124 | AF19: 124 | AH19: 0 | AI19: 0
A20: 2021-02-25 | B20: NOUS | C20: 5603 | D20: REPRISE | U20: 56.25 | V20: 2020-04-01 | W20: 1 an, 0 mois et 25 jours | Y20: 112.5 | AC20: 112.5 | AH20: 0 | AI20: 0
A21: 2021-02-25 | B21: VOUS | C21: 5603 | Y21: 188 | Z21: 39 | AC21: 10 | AD21: 139
A22: 2021-02-25 | B22: TOI | C22: 5603 | V22: 2022-03-01 | Y22: 148 | AF22: 148
A23: 2021-02-28 | B23: MOI | C23: 4411 | U23: 38.5 | V23: 2017-06-15 | W23: 3 ans, 10 mois et 11 jours | Y23: 77 | AF23: 77 | AH23: 0 | AI23: 0
A24: 2021-02-28 | B24: LUI | C24: 4411 | F24: 331.2 | G24: 276 | U24: 12.5 | V24: 2017-06-15 | W24: 3 ans, 10 mois et 11 jours | X24: A SUPPRIMER A LA REFONTE | Y24: 25 | AC24: 25 | AH24: 0 | AI24: 0
A25: 2021-02-28 | B25: NOUS | C25: 3455 | D25: REPRISE | U25: 44 | V25: 2016-04-01 | W25: 5 ans, 0 mois et 25 jours | Y25: 88 | AF25: 88 | AH25: 0 | AI25: 0
A26: 2021-02-28 | B26: VOUS | C26: 3455 | E26: 2350 | F26: 2820 | G26: 2350 | H26: 2021-02-28 | I26: 152.75 | J26: 2021-02-01 | U26: 14.5 | V26: 2016-08-01 | W26: 4 ans, 8 mois et 25 jours | Y26: 29 | AC26: 29 | AH26: 0 | AI26: 0
A27: 2021-02-28 | B27: TOI | C27: 795 | D27: REPRISE | U27: 34.5 | V27: 2017-04-15 | W27: 4 ans, 0 mois et 11 jours | Y27: 69 | AF27: 69 | AH27: 0 | AI27: 0
A28: 2021-02-28 | B28: MOI | C28: 795 | E28: 700 | F28: 840 | G28: 700 | H28: 2021-02-28 | I28: 45.5 | J28: 2021-02-01 | U28: 9.5 | V28: 2017-04-15 | W28: 4 ans, 0 mois et 11 jours | Y28: 19 | AC28: 19 | AH28: 0 | AI28: 0
A29: 2021-02-28 | B29: LUI | C29: 2656 | D29: REPRISE | U29: 44 | V29: 2017-01-15 | W29: 4 ans, 3 mois et 11 jours | Y29: 88 | AF29: 88 | AH29: 0 | AI29: 0
A30: 2021-02-28 | B30: NOUS | C30: 2656 | E30: 2100 | F30: 1260 | G30: 1050 | H30: 2021-02-28 | I30: 68.25 | J30: 2021-02-01 | U30: 59.5 | V30: 2015-06-15 | W30: 5 ans, 10 mois et 11 jours | Y30: 119 | AC30: 29 | AD30: 90 | AH30: 0 | AI30: 0
A31: 2021-03-22 | B31: VOUS | C31: 4773 | E31: 1750 | F31: 1050 | G31: 875 | H31: 2021-03-22 | I31: 56.875 | J31: 2021-03-01 | R31: 2017-09-15 | S31: 165 | T31: 330
A32: 2021-03-22 | B32: TOI | C32: 8266 | D32: REPRISE | V32: 2021-02-01 | W32: 0 an, 2 mois et 25 jours | X32: REF 118 AU 01/05/21 | Y32: 9 | AC32: 9 | AH32: 9 | AI32: 9
A33: 2021-03-22 | B33: MOI | C33: 8266 | D33: REPRISE | V33: 2021-02-01 | W33: 0 an, 2 mois et 25 jours | Y33: 99 | AF33: 99 | AH33: 99 | AI33: 99
A34: 2021-03-25 | B34: LUI | C34: 4765 | D34: REPRISE | R34: 2017-09-15 | S34: 490 | T34: 980 | V34: 2020-08-15 | W34: 0 an, 8 mois et 11 jours | Y34: 79 | Z34: 79 | AH34: 79 | AI34: 79
A35: 2021-03-25 | B35: NOUS | C35: 4765 | D35: REPRISE | Y35: 132.5 | AC35: 132.5
A36: 2021-03-26 | B36: VOUS | C36: 754 | D36: REPRISE | F36: 420 | G36: 350 | H36: 2021-03-26 | I36: 22.75 | J36: 2021-03-01 | V36: 2021-07-15 | Y36: 69 | AF36: 69
A37: 2021-03-26 | B37: TOI | C37: 754 | E37: 3000 | F37: 1800 | G37: 1500 | H37: 2021-04-22 | I37: 97.5 | J37: 2021-04-01 | U37: 14.5 | V37: 2016-04-15 | W37: 5 ans, 0 mois et 11 jours | Y37: 29 | AC37: 29 | AH37: 0 | AI37: 0
A38: 2021-03-31 | B38: MOI | C38: 90778955 | F38: 996 | G38: 830 | H38: 2021-03-31 | I38: 53.95 | J38: 2021-03-01 | X38: DEDUIRE 3 MOIS | Y38: 165 | AC38: 165
A39: 2021-03-31 | B39: LUI | C39: 90778955 | F39: 360 | G39: 300 | H39: 2021-03-31 | I39: 19.5 | J39: 2021-03-01 | V39: 2022-07-01 | Y39: 169 | AF39: 169
A40: 2021-04-01 | B40: NOUS | C40: 90420200 | F40: 331.2 | G40: 276 | Y40: 92 | AC40: 92
A41: 2021-04-14 | B41: VOUS | C41: 3149 | D41: REPRISE | U41: 44 | V41: 2015-11-15 | W41: 5 ans, 5 mois et 11 jours | Y41: 88 | AF41: 88 | AH41: 0 | AI41: 0
A42: 2021-04-14 | B42: TOI | C42: 3149 | Y42: 92.5 | AC42: 92.5
A43: 2021-04-14 | B43: MOI | C43: 1724 | D43: REPRISE | U43: 80 | V43: 2018-01-15 | W43: 3 ans, 3 mois et 11 jours | Y43: 160 | AD43: 160 | AH43: 0 | AI43: 0
A44: 2021-04-14 | B44: LUI | C44: 1724 | Y44: 94.5 | AC44: 94.5
A45: 2021-04-14 | B45: NOUS | C45: 1724 | D45: REPRISE | U45: 39 | V45: 2013-10-15 | W45: 7 ans, 6 mois et 11 jours | Y45: 78 | AF45: 78 | AH45: 0 | AI45: 0
A46: 2021-04-19 | B46: VOUS | C46: 90779043 | V46: 2021-08-01 | Y46: 99 | AF46: 99
A47: 2021-04-21 | B47: TOI | C47: 5366 | F47: 604.8 | G47: 504 | Y47: 168 | Z47: 5 | AC47: 163
G48: =IF(F48="","",F48/1.2) ->  | I48: =IF(H48="","",VLOOKUP(H48,$B$64:$C$70,2)*G48) ->  | L48: =IF(K48="","",K48/1.2) ->  | N48: =IF(M48="","",VLOOKUP(M48,$B$64:$C$70,2)*L48) ->  | S48: =IF(R48="","",IF(R48<$A$3-365,T48/2,"")) ->  | U48: =IF($V48="","",IF(Y48="",0,IF($V48<$A$3-375,Y48/2,""))) ->  | W48: =IF(V48="","",IF(V48>$A$3,"",DATEDIF(V48,$A$3,"Y")&IF(DATEDIF(V48,$A$3,"Y")>1," ans, "," an, ")&DATEDIF(V48,$A$3,"YM")&" mois et "&DATEDIF(V48,$A$3,"MD")&IF(DATEDIF(V48,$A$3,"MD")>1," jours"," jour"))) ->  | AH48: =IF(V48="","",IF(V48>$A$3,"",IF(X48="ANNUEL",0,IF(V48>$A$3-365,Y48,0)))) -> 
A49: NE PAS MODIFIER, EFFACER OU SUPPRIMER CETTE DERNIÈRE LIGNE, C'EST ELLE QUI SERT DE REPÈRE POUR LA MACRO " POUR ARCHIVER " | N49: NE PAS MODIFIER, EFFACER OU SUPPRIMER CETTE DERNIÈRE LIGNE, C'EST ELLE QUI SERT DE REPÈRE POUR LA MACRO " POUR ARCHIVER " | Z49: NE PAS MODIFIER, EFFACER OU SUPPRIMER CETTE DERNIÈRE LIGNE.
B50: DANY
C51: SEULES les Cellules Coloriées en VERT sont MODIFIABLES. | K51: POUR ARCHIVER | AH51: =SUM(AH21:AH50) -> 187 | AI51: =IF(AH51="","",AH51) -> 187
B52: RÉCAPITULATIF DES COMMISSIONS VERSÉES : | K52: ( ê CLIC UNE FOIS ê )
B53: MARS 2021 | D53: =I39+I38+I36+I31 -> 153.075 | F53: ACOMPTE
D54: =IF($I$54=0,0,$I$54*$H$54) -> 68.7375 | F54: RÉCURRENTS 50 | H54: =IF($C$64="","",VLOOKUP($A$3,$B$64:$C$70,2)) -> 0.065 | I54: =$U$5 -> 1057.5
D55: =IF($I$55=0,0,$I$55*$H$55) -> 13.39 | F55: RÉCURRENTS 100 | H55: =IF($C$64="","",VLOOKUP($A$3,$B$64:$C$70,2)) -> 0.065 | I55: =$AI$5 -> 206
D56: =N9 -> 39 | F56: SITES LIVRÉS ET PRESTATIONS ANNUELLES
D58: =IF($I$58=0,0,$I$58*$H$58) -> 0 | F58: LEASING | H58: =IF($C$64="","",VLOOKUP($A$3,$B$64:$C$70,2)) -> 0.065
B59: =("TOTAL ")&B53 -> TOTAL MARS 2021 | D59: =SUM(D53:D58) -> 274.2025
B61: DATES ET POURCENTAGES DES COMMISSIONS VERSÉES :
B63: DATES | C63: %
B64: 2020-11-03 | C64: 0.065
B72: ê ARCHIVAGE ê
B75: RÉCAPITULATIF DES COMMISSIONS VERSÉES :
B76: MARS 2021 | D76: 153.075 | F76: ACOMPTE
D77: 68.7375 | F77: RÉCURRENTS 50 | H77: 0.065 | I77: 1057.5
D78: 13.39 | F78: RÉCURRENTS 100 | H78: 0.065 | I78: 206
D79: 39 | F79: SITES LIVRÉS ET PRESTATIONS ANNUELLES
D81: 0 | F81: LEASING | H81: 0.065
B82: TOTAL MARS 2021 | D82: 274.2025
B85: RÉCAPITULATIF DES COMMISSIONS VERSÉES :
B86: FEVRIER 2021 | D86: 377 | F86: ACOMPTE
B87: 6,5 DE 739,25 SOIT 48,05 | D87: 0 | F87: RÉCURRENTS 50 | H87: 0.065 | I87: 0
B88: 6,5 DE 220,50 SOIT 14,33 | D88: 7.02 | F88: RÉCURRENTS 100 | H88: 0.065 | I88: 108
D89: 0 | F89: SITES LIVRÉS ET PRESTATIONS ANNUELLES
D91: 0 | F91: LEASING | H91: 0.065
B92: TOTAL FEVRIER 2021 | D92: 384.02
B95: RÉCAPITULATIF DES COMMISSIONS VERSÉES :
B96: JANVIER 2021 | F96: ACOMPTE
D97: 9.27875 | F97: RÉCURRENTS 50 | H97: 0.065 | I97: 142.75
D98: 0 | F98: RÉCURRENTS 100 | H98: 0.065 | I98: 0
F99: SITES LIVRÉS ET PRESTATIONS ANNUELLES
D101: 0 | F101: LEASING | H101: 0.065
B102: TOTAL JANVIER 2021 | D102: 9.27875
